[Event "*** SCC Grand Prix: Titled Tuesday Blitz"]
[Site "Chess.com"]
[Date "2020.06.09"]
[Round "7"]
[White "Glek_Igor"]
[Black "snap_man"]
[Result "1-0"]
[WhiteElo "2439"]
[BlackElo "2298"]
[TimeControl "180+1"]
[EndTime "10:16:37 PDT"]
[Termination "Glek_Igor won by resignation"]

1. e4 {[%clk 0:03:00.9]} 1... c5 {[%clk 0:02:59]} 2. Nf3 {[%clk 0:03:00.1]} 2...
g6 {[%clk 0:02:59.3]} 3. c3 {[%clk 0:02:59.1]} 3... Bg7 {[%clk 0:02:58.7]} 4. h3
{[%clk 0:02:58.1]} 4... d5 {[%clk 0:02:57.5]} 5. e5 {[%clk 0:02:55.7]} 5... Nc6
{[%clk 0:02:49.3]} 6. Bb5 {[%clk 0:02:53.8]} 6... Qb6 {[%clk 0:02:35]} 7. a4
{[%clk 0:02:49.6]} 7... a6 {[%clk 0:02:27.7]} 8. Bxc6+ {[%clk 0:02:46.4]} 8...
Qxc6 {[%clk 0:02:27.9]} 9. d4 {[%clk 0:02:46.8]} 9... Bf5 {[%clk 0:02:26.8]} 10.
Be3 {[%clk 0:02:42]} 10... Be4 {[%clk 0:02:19.5]} 11. Nbd2 {[%clk 0:02:39.5]}
11... Bxf3 {[%clk 0:01:55.3]} 12. Nxf3 {[%clk 0:02:37.9]} 12... c4 {[%clk
0:01:55.8]} 13. a5 {[%clk 0:02:31.7]} 13... e6 {[%clk 0:01:55.4]} 14. b3 {[%clk
0:02:29.4]} 14... Ne7 {[%clk 0:01:53.1]} 15. O-O {[%clk 0:02:19.4]} 15... Qb5
{[%clk 0:01:38.8]} 16. Nd2 {[%clk 0:02:04.2]} 16... O-O {[%clk 0:01:37.3]} 17.
Bg5 {[%clk 0:01:58.3]} 17... Nc6 {[%clk 0:01:31.2]} 18. bxc4 {[%clk 0:01:52.3]}
18... dxc4 {[%clk 0:01:30]} 19. Qa4 {[%clk 0:01:47.3]} 19... Rfc8 {[%clk
0:01:25.6]} 20. Rfb1 {[%clk 0:01:34.2]} 20... Qxa4 {[%clk 0:01:18.1]} 21. Rxa4
{[%clk 0:01:30.8]} 21... Rc7 {[%clk 0:01:18.2]} 22. Nxc4 {[%clk 0:01:25.1]}
22... Na7 {[%clk 0:01:14.7]} 23. Nd6 {[%clk 0:01:21]} 23... Nb5 {[%clk
0:01:01.9]} 24. Nxb5 {[%clk 0:01:16.9]} 24... axb5 {[%clk 0:01:02.5]} 25. Rxb5
{[%clk 0:01:17.2]} 25... Bf8 {[%clk 0:01:02.7]} 26. c4 {[%clk 0:01:13.1]} 26...
Rd8 {[%clk 0:01:02.3]} 1-0

[Event "*** SCC Grand Prix: Titled Tuesday Blitz"]
[Site "Chess.com"]
[Date "2020.06.09"]
[Round "7"]
[White "ENEASZ"]
[Black "ZarinaShafigullina"]
[Result "1-0"]
[WhiteElo "2469"]
[BlackElo "2247"]
[TimeControl "180+1"]
[EndTime "10:16:52 PDT"]
[Termination "ENEASZ won by checkmate"]

1. e4 {[%clk 0:03:00.9]} 1... c5 {[%clk 0:03:00]} 2. c3 {[%clk 0:03:00.8]} 2...
d5 {[%clk 0:02:59.1]} 3. exd5 {[%clk 0:03:01.7]} 3... Qxd5 {[%clk 0:02:59.8]} 4.
d4 {[%clk 0:03:02.3]} 4... Nf6 {[%clk 0:02:59.7]} 5. Nf3 {[%clk 0:03:02.2]} 5...
Bg4 {[%clk 0:02:59.2]} 6. Be2 {[%clk 0:03:02.1]} 6... Nc6 {[%clk 0:02:58.8]} 7.
h3 {[%clk 0:03:01.1]} 7... Bh5 {[%clk 0:02:58.5]} 8. c4 {[%clk 0:03:01.2]} 8...
Qd6 {[%clk 0:02:53.6]} 9. d5 {[%clk 0:03:01.2]} 9... Bxf3 {[%clk 0:02:36]} 10.
Bxf3 {[%clk 0:03:02.1]} 10... Nd4 {[%clk 0:02:36]} 11. Be3 {[%clk 0:03:02.6]}
11... Nxf3+ {[%clk 0:02:17.4]} 12. Qxf3 {[%clk 0:03:03.5]} 12... O-O-O {[%clk
0:02:16.4]} 13. Nc3 {[%clk 0:03:03.3]} 13... e6 {[%clk 0:02:15.7]} 14. O-O
{[%clk 0:02:55.8]} 14... exd5 {[%clk 0:02:08.7]} 15. cxd5 {[%clk 0:02:56.7]}
15... a6 {[%clk 0:02:05.1]} 16. Rfd1 {[%clk 0:02:55.4]} 16... Be7 {[%clk
0:02:04.2]} 17. Rac1 {[%clk 0:02:55.2]} 17... Kd7 {[%clk 0:01:59.6]} 18. Qf5+
{[%clk 0:02:52.7]} 18... Ke8 {[%clk 0:01:59.1]} 19. Bf4 {[%clk 0:02:52.7]} 19...
Qd7 {[%clk 0:01:56.8]} 20. Qd3 {[%clk 0:02:52.7]} 20... Bd6 {[%clk 0:01:54.8]}
21. Re1+ {[%clk 0:02:52.7]} 21... Kf8 {[%clk 0:01:54.5]} 22. Bg5 {[%clk
0:02:53.4]} 22... Be7 {[%clk 0:01:45.7]} 23. Rcd1 {[%clk 0:02:43]} 23... h6
{[%clk 0:01:41.1]} 24. d6 {[%clk 0:02:41.5]} 24... Qxd6 {[%clk 0:01:33]} 25. Qf5
{[%clk 0:02:16.5]} 25... Qc7 {[%clk 0:01:01.9]} 26. Rxd8+ {[%clk 0:02:10.7]}
26... Qxd8 {[%clk 0:01:01.8]} 27. Bxf6 {[%clk 0:02:08.3]} 27... Bxf6 {[%clk
0:00:46.1]} 28. Qxc5+ {[%clk 0:02:08.3]} 28... Kg8 {[%clk 0:00:46.2]} 29. Ne4
{[%clk 0:02:08.1]} 29... Qd4 {[%clk 0:00:25]} 30. Qc8+ {[%clk 0:02:04]} 30...
Kh7 {[%clk 0:00:24.7]} 31. Qf5+ {[%clk 0:02:03.8]} 31... Kg8 {[%clk 0:00:22.9]}
32. Nxf6+ {[%clk 0:02:03.6]} 32... gxf6 {[%clk 0:00:18.8]} 33. Re4 {[%clk
0:02:03.7]} 33... Qd1+ {[%clk 0:00:17.7]} 34. Kh2 {[%clk 0:02:04.1]} 34... Qd6+
{[%clk 0:00:18.4]} 35. g3 {[%clk 0:02:03.5]} 35... Kf8 {[%clk 0:00:18.9]} 36.
Qc8+ {[%clk 0:02:00.3]} 36... Kg7 {[%clk 0:00:19]} 37. Rg4+ {[%clk 0:02:00.6]}
37... Kh7 {[%clk 0:00:19.3]} 38. Qf5# {[%clk 0:02:01.5]} 1-0

[Event "*** SCC Grand Prix: Titled Tuesday Blitz"]
[Site "Chess.com"]
[Date "2020.06.09"]
[Round "7"]
[White "Anton_Demchenko"]
[Black "Dinamo81"]
[Result "1-0"]
[WhiteElo "2825"]
[BlackElo "2649"]
[TimeControl "180+1"]
[EndTime "10:16:58 PDT"]
[Termination "Anton_Demchenko won on time"]

1. d4 {[%clk 0:03:00.9]} 1... d5 {[%clk 0:02:57.9]} 2. Nf3 {[%clk 0:03:01.3]}
2... e6 {[%clk 0:02:56]} 3. Bf4 {[%clk 0:03:01.4]} 3... Nf6 {[%clk 0:02:51.2]}
4. e3 {[%clk 0:03:00.6]} 4... Bd6 {[%clk 0:02:50.6]} 5. Ne5 {[%clk 0:03:00.2]}
5... O-O {[%clk 0:02:40.9]} 6. Nd2 {[%clk 0:02:59.2]} 6... c5 {[%clk 0:02:33.4]}
7. c3 {[%clk 0:02:59]} 7... Qc7 {[%clk 0:02:24.4]} 8. Bd3 {[%clk 0:02:58.9]}
8... Nbd7 {[%clk 0:02:15.2]} 9. Ndf3 {[%clk 0:02:58.8]} 9... b6 {[%clk
0:02:07.8]} 10. g4 {[%clk 0:02:58.6]} 10... Bb7 {[%clk 0:01:09.8]} 11. g5 {[%clk
0:02:58.6]} 11... Ne4 {[%clk 0:01:09.3]} 12. Rg1 {[%clk 0:02:58.3]} 12... Rfd8
{[%clk 0:00:56.3]} 13. h4 {[%clk 0:02:54.5]} 13... a5 {[%clk 0:00:32.1]} 14. Qe2
{[%clk 0:02:41.6]} 14... cxd4 {[%clk 0:00:24.2]} 15. cxd4 {[%clk 0:02:39.8]}
15... Nxe5 {[%clk 0:00:20.6]} 16. Nxe5 {[%clk 0:02:35.7]} 16... Rac8 {[%clk
0:00:17.3]} 17. Kf1 {[%clk 0:02:23.8]} 17... Bxe5 {[%clk 0:00:10.6]} 18. Bxe5
{[%clk 0:02:22.4]} 18... Qd7 {[%clk 0:00:06.6]} 19. h5 {[%clk 0:02:14]} 19...
Nd6 {[%clk 0:00:05.2]} 20. Bxh7+ {[%clk 0:01:30.3]} 20... Kxh7 {[%clk
0:00:03.8]} 21. g6+ {[%clk 0:01:30.9]} 1-0

[Event "*** SCC Grand Prix: Titled Tuesday Blitz"]
[Site "Chess.com"]
[Date "2020.06.09"]
[Round "7"]
[White "SargissyanSargis"]
[Black "kran900"]
[Result "0-1"]
[WhiteElo "2308"]
[BlackElo "2447"]
[TimeControl "180+1"]
[EndTime "10:16:58 PDT"]
[Termination "kran900 won by resignation"]

1. e4 {[%clk 0:03:00.9]} 1... e5 {[%clk 0:02:59.6]} 2. Nf3 {[%clk 0:03:01.1]}
2... Nc6 {[%clk 0:03:00.3]} 3. Bb5 {[%clk 0:03:01.6]} 3... a6 {[%clk 0:02:59.4]}
4. Ba4 {[%clk 0:03:00.6]} 4... Nf6 {[%clk 0:02:59.9]} 5. O-O {[%clk 0:03:00.1]}
5... Be7 {[%clk 0:03:00.2]} 6. d3 {[%clk 0:03:00]} 6... b5 {[%clk 0:03:00.2]} 7.
Bb3 {[%clk 0:03:00.6]} 7... O-O {[%clk 0:03:00.8]} 8. c3 {[%clk 0:02:57.1]} 8...
d5 {[%clk 0:03:00.6]} 9. Nbd2 {[%clk 0:02:55.1]} 9... Bg4 {[%clk 0:02:42.8]} 10.
h3 {[%clk 0:02:55.3]} 10... Bh5 {[%clk 0:02:42.9]} 11. Re1 {[%clk 0:02:47.2]}
11... d4 {[%clk 0:02:40.1]} 12. Nf1 {[%clk 0:02:42.9]} 12... Na5 {[%clk
0:02:38.2]} 13. g4 {[%clk 0:02:23.5]} 13... Nxb3 {[%clk 0:02:37.9]} 14. axb3
{[%clk 0:02:23.1]} 14... Nxg4 {[%clk 0:02:37.4]} 15. hxg4 {[%clk 0:02:22.7]}
15... Bxg4 {[%clk 0:02:38]} 16. N1h2 {[%clk 0:02:20.8]} 16... Bh5 {[%clk
0:02:38]} 17. Qc2 {[%clk 0:02:02.9]} 17... f5 {[%clk 0:02:36.1]} 18. Nxe5 {[%clk
0:01:58.3]} 18... f4 {[%clk 0:02:12]} 19. f3 {[%clk 0:01:30.9]} 19... Bh4 {[%clk
0:01:58.9]} 20. Rf1 {[%clk 0:01:18.5]} 20... Qd6 {[%clk 0:01:56.3]} 21. Neg4
{[%clk 0:01:18.9]} 21... Bg3 {[%clk 0:01:53.2]} 22. e5 {[%clk 0:01:11.2]} 22...
Qd8 {[%clk 0:01:44.2]} 23. Qe2 {[%clk 0:00:50]} 23... Bg6 {[%clk 0:01:40.8]} 24.
c4 {[%clk 0:00:47.6]} 24... h5 {[%clk 0:01:35.5]} 25. Nf2 {[%clk 0:00:47.9]}
25... Bxh2+ {[%clk 0:01:21.2]} 26. Kxh2 {[%clk 0:00:47.4]} 26... Qh4+ {[%clk
0:01:21.9]} 27. Nh3 {[%clk 0:00:43.7]} 27... Qg3+ {[%clk 0:01:21.9]} 28. Kh1
{[%clk 0:00:43]} 28... Qxh3+ {[%clk 0:01:22.4]} 29. Qh2 {[%clk 0:00:40.1]} 29...
Qxf1+ {[%clk 0:01:22.2]} 0-1

[Event "*** SCC Grand Prix: Titled Tuesday Blitz"]
[Site "Chess.com"]
[Date "2020.06.09"]
[Round "7"]
[White "AliKa2810"]
[Black "BIG_Pirate"]
[Result "1-0"]
[WhiteElo "2583"]
[BlackElo "2420"]
[TimeControl "180+1"]
[EndTime "10:17:08 PDT"]
[Termination "AliKa2810 won on time"]

1. d4 {[%clk 0:03:00.9]} 1... d5 {[%clk 0:02:59.9]} 2. c4 {[%clk 0:03:00.4]}
2... c6 {[%clk 0:03:00]} 3. Nf3 {[%clk 0:03:00.2]} 3... Nf6 {[%clk 0:02:59.4]}
4. Nc3 {[%clk 0:03:00.4]} 4... e6 {[%clk 0:02:58.6]} 5. Bg5 {[%clk 0:02:59.8]}
5... Nbd7 {[%clk 0:02:58.5]} 6. e3 {[%clk 0:02:59.4]} 6... Qa5 {[%clk
0:02:58.4]} 7. Nd2 {[%clk 0:02:58.5]} 7... Bb4 {[%clk 0:02:57.2]} 8. Qc2 {[%clk
0:02:58.9]} 8... O-O {[%clk 0:02:56.1]} 9. Be2 {[%clk 0:02:58.2]} 9... e5 {[%clk
0:02:56.2]} 10. O-O {[%clk 0:02:57.1]} 10... exd4 {[%clk 0:02:49]} 11. Nb3
{[%clk 0:02:57.2]} 11... Qb6 {[%clk 0:02:42.6]} 12. exd4 {[%clk 0:02:56.6]}
12... Re8 {[%clk 0:02:14]} 13. cxd5 {[%clk 0:02:39.1]} 13... Nxd5 {[%clk
0:01:26.1]} 14. Nxd5 {[%clk 0:02:37.9]} 14... cxd5 {[%clk 0:01:27]} 15. Bf3
{[%clk 0:02:38.3]} 15... Qd6 {[%clk 0:00:52.7]} 16. a3 {[%clk 0:02:36.2]} 16...
Nb6 {[%clk 0:00:20.6]} 17. axb4 {[%clk 0:02:34.6]} 17... Qxb4 {[%clk 0:00:21.5]}
18. Bd2 {[%clk 0:02:13]} 18... Qd6 {[%clk 0:00:19.3]} 19. Qc5 {[%clk 0:02:12.7]}
19... Qg6 {[%clk 0:00:13.7]} 20. Rfe1 {[%clk 0:02:05]} 20... Be6 {[%clk
0:00:12.3]} 21. Na5 {[%clk 0:01:57.5]} 21... Rac8 {[%clk 0:00:11.2]} 22. Qb4
{[%clk 0:01:48.8]} 22... Rc7 {[%clk 0:00:07.2]} 23. Bf4 {[%clk 0:01:45.9]} 23...
Rd7 {[%clk 0:00:04.9]} 24. Rac1 {[%clk 0:01:43.4]} 24... h5 {[%clk 0:00:03.5]}
25. Nb3 {[%clk 0:01:33.8]} 25... Rdd8 {[%clk 0:00:01.3]} 26. Nc5 {[%clk
0:01:32.3]} 1-0

[Event "*** SCC Grand Prix: Titled Tuesday Blitz"]
[Site "Chess.com"]
[Date "2020.06.09"]
[Round "7"]
[White "anastasiyakarlovych"]
[Black "Savva09022009"]
[Result "0-1"]
[WhiteElo "1991"]
[BlackElo "2421"]
[TimeControl "180+1"]
[EndTime "10:17:14 PDT"]
[Termination "Savva09022009 won on time"]

1. e4 {[%clk 0:03:00.9]} 1... c5 {[%clk 0:02:58.8]} 2. Nf3 {[%clk 0:02:57.4]}
2... Nc6 {[%clk 0:02:58.9]} 3. Bb5 {[%clk 0:02:56.3]} 3... Nf6 {[%clk
0:02:53.9]} 4. e5 {[%clk 0:02:54.1]} 4... Ng4 {[%clk 0:02:52.5]} 5. Qe2 {[%clk
0:02:53.5]} 5... g6 {[%clk 0:02:48.4]} 6. h3 {[%clk 0:02:49.2]} 6... Nh6 {[%clk
0:02:47.5]} 7. O-O {[%clk 0:02:47.6]} 7... Bg7 {[%clk 0:02:46.3]} 8. c3 {[%clk
0:02:47.6]} 8... O-O {[%clk 0:02:41.3]} 9. d4 {[%clk 0:02:43.5]} 9... a6 {[%clk
0:02:36.3]} 10. Bd3 {[%clk 0:02:35.9]} 10... cxd4 {[%clk 0:02:26.8]} 11. cxd4
{[%clk 0:02:27.7]} 11... d6 {[%clk 0:02:27.7]} 12. Nc3 {[%clk 0:02:23.8]} 12...
dxe5 {[%clk 0:02:25.1]} 13. dxe5 {[%clk 0:02:18.5]} 13... Nf5 {[%clk 0:02:22.5]}
14. Bf4 {[%clk 0:02:04.5]} 14... Nfd4 {[%clk 0:02:20.9]} 15. Nxd4 {[%clk
0:01:59.4]} 15... Qxd4 {[%clk 0:02:21.8]} 16. Bg3 {[%clk 0:01:30.1]} 16... Nxe5
{[%clk 0:02:18.1]} 17. Bc2 {[%clk 0:01:23.2]} 17... Nc6 {[%clk 0:01:51]} 18.
Rad1 {[%clk 0:01:20.6]} 18... Qc5 {[%clk 0:01:49.3]} 19. Ne4 {[%clk 0:00:45.4]}
19... Qb6 {[%clk 0:01:45.1]} 20. b3 {[%clk 0:00:26.3]} 20... Bf5 {[%clk
0:01:41.9]} 21. Rfe1 {[%clk 0:00:11.9]} 21... Nd4 {[%clk 0:01:40.7]} 22. Qd3
{[%clk 0:00:07.1]} 22... Rfd8 {[%clk 0:01:38.6]} 23. Bb1 {[%clk 0:00:06.7]}
23... Rac8 {[%clk 0:01:31.9]} 24. Qe3 {[%clk 0:00:03.5]} 24... Rc3 {[%clk
0:01:24.2]} 0-1

[Event "*** SCC Grand Prix: Titled Tuesday Blitz"]
[Site "Chess.com"]
[Date "2020.06.09"]
[Round "7"]
[White "MateSchmate"]
[Black "BilguunSu"]
[Result "0-1"]
[WhiteElo "2430"]
[BlackElo "2610"]
[TimeControl "180+1"]
[EndTime "10:17:29 PDT"]
[Termination "BilguunSu won by checkmate"]

1. e4 {[%clk 0:02:38.5]} 1... c5 {[%clk 0:03:00.9]} 2. Nf3 {[%clk 0:02:37.2]}
2... e6 {[%clk 0:03:01.3]} 3. d4 {[%clk 0:02:36.9]} 3... cxd4 {[%clk 0:03:01.6]}
4. Nxd4 {[%clk 0:02:37.8]} 4... a6 {[%clk 0:03:01.6]} 5. Nc3 {[%clk 0:02:37.4]}
5... Qc7 {[%clk 0:03:02]} 6. g3 {[%clk 0:02:35.1]} 6... Bb4 {[%clk 0:02:59.7]}
7. Bd2 {[%clk 0:02:31.4]} 7... Nc6 {[%clk 0:02:59.1]} 8. Nb3 {[%clk 0:02:30.8]}
8... Nf6 {[%clk 0:02:57.3]} 9. Bg2 {[%clk 0:02:28.3]} 9... O-O {[%clk
0:02:55.3]} 10. O-O {[%clk 0:02:27.4]} 10... Be7 {[%clk 0:02:54.8]} 11. Qe2
{[%clk 0:02:23.1]} 11... d6 {[%clk 0:02:54]} 12. f4 {[%clk 0:02:20.3]} 12... e5
{[%clk 0:02:50.7]} 13. f5 {[%clk 0:02:12.9]} 13... Nd4 {[%clk 0:02:50.4]} 14.
Nxd4 {[%clk 0:02:09.2]} 14... exd4 {[%clk 0:02:49.7]} 15. Nd5 {[%clk 0:02:09.6]}
15... Nxd5 {[%clk 0:02:49.2]} 16. exd5 {[%clk 0:02:10.5]} 16... Bf6 {[%clk
0:02:49.1]} 17. Rac1 {[%clk 0:01:47.4]} 17... Bd7 {[%clk 0:02:48.1]} 18. Qf3
{[%clk 0:01:38.4]} 18... Rae8 {[%clk 0:02:46.9]} 19. c3 {[%clk 0:01:33.6]} 19...
Qb6 {[%clk 0:02:42.2]} 20. Qf2 {[%clk 0:01:05.8]} 20... Qxb2 {[%clk 0:02:41.1]}
21. Rb1 {[%clk 0:00:58.1]} 21... Qc2 {[%clk 0:02:40.8]} 22. Rfc1 {[%clk
0:00:40.3]} 22... Qxf5 {[%clk 0:02:32.7]} 23. Qxf5 {[%clk 0:00:38.4]} 23... Bxf5
{[%clk 0:02:32.1]} 24. Rxb7 {[%clk 0:00:38.6]} 24... dxc3 {[%clk 0:02:28.2]} 25.
Bxc3 {[%clk 0:00:38.5]} 25... Rc8 {[%clk 0:02:27.9]} 26. Bd2 {[%clk 0:00:36]}
26... Bd4+ {[%clk 0:02:27.4]} 27. Kh1 {[%clk 0:00:27.2]} 27... h6 {[%clk
0:02:22.9]} 28. h3 {[%clk 0:00:20.3]} 28... g5 {[%clk 0:02:17.6]} 29. Rbc7
{[%clk 0:00:18]} 29... Rxc7 {[%clk 0:02:13.8]} 30. Rxc7 {[%clk 0:00:18.9]} 30...
Rb8 {[%clk 0:02:13.5]} 31. g4 {[%clk 0:00:17.5]} 31... Rb1+ {[%clk 0:02:12.3]}
32. Rc1 {[%clk 0:00:17]} 32... Rb2 {[%clk 0:02:04.4]} 33. Bxg5 {[%clk
0:00:14.3]} 33... hxg5 {[%clk 0:02:03.6]} 34. gxf5 {[%clk 0:00:14.3]} 34... Rxa2
{[%clk 0:02:03.5]} 35. Rc8+ {[%clk 0:00:10.3]} 35... Kg7 {[%clk 0:02:02.9]} 36.
Be4 {[%clk 0:00:11.2]} 36... Kf6 {[%clk 0:02:00.7]} 37. Rc7 {[%clk 0:00:11.1]}
37... a5 {[%clk 0:01:58]} 38. Bd3 {[%clk 0:00:09.7]} 38... a4 {[%clk 0:01:53.3]}
39. Bb5 {[%clk 0:00:09.5]} 39... a3 {[%clk 0:01:53.2]} 40. Be8 {[%clk
0:00:09.2]} 40... Kxf5 {[%clk 0:01:52.7]} 41. Rxf7+ {[%clk 0:00:05.7]} 41... Ke4
{[%clk 0:01:52.7]} 42. Re7+ {[%clk 0:00:04.7]} 42... Kf4 {[%clk 0:01:52.7]} 43.
Rf7+ {[%clk 0:00:04]} 43... Kg3 {[%clk 0:01:52.8]} 44. Rf1 {[%clk 0:00:03.8]}
44... Rh2# {[%clk 0:01:52.8]} 0-1

[Event "*** SCC Grand Prix: Titled Tuesday Blitz"]
[Site "Chess.com"]
[Date "2020.06.09"]
[Round "7"]
[White "Zurability"]
[Black "ditkin25"]
[Result "1-0"]
[WhiteElo "2660"]
[BlackElo "2413"]
[TimeControl "180+1"]
[EndTime "10:17:30 PDT"]
[Termination "Zurability won by resignation"]

1. c4 {[%clk 0:02:59.5]} 1... g6 {[%clk 0:02:59.2]} 2. d4 {[%clk 0:02:59.2]}
2... Bg7 {[%clk 0:02:58.9]} 3. Nc3 {[%clk 0:02:59.2]} 3... d6 {[%clk 0:02:59.1]}
4. e4 {[%clk 0:02:59.7]} 4... Nf6 {[%clk 0:02:59.4]} 5. Nf3 {[%clk 0:03:00.1]}
5... O-O {[%clk 0:02:59.8]} 6. Be2 {[%clk 0:03:00.4]} 6... c5 {[%clk 0:03:00.5]}
7. d5 {[%clk 0:02:59.4]} 7... e6 {[%clk 0:03:00.6]} 8. O-O {[%clk 0:02:59.8]}
8... exd5 {[%clk 0:03:01.1]} 9. cxd5 {[%clk 0:03:00.3]} 9... Re8 {[%clk
0:03:01.4]} 10. Nd2 {[%clk 0:03:00.3]} 10... a6 {[%clk 0:03:01.1]} 11. a4 {[%clk
0:03:00.3]} 11... Nbd7 {[%clk 0:03:00.8]} 12. Re1 {[%clk 0:02:59.6]} 12... Qc7
{[%clk 0:02:56.8]} 13. Bf1 {[%clk 0:02:58.6]} 13... Ne5 {[%clk 0:02:50.5]} 14.
h3 {[%clk 0:02:55.3]} 14... c4 {[%clk 0:02:49.9]} 15. Qc2 {[%clk 0:02:39.5]}
15... Nh5 {[%clk 0:02:26.1]} 16. a5 {[%clk 0:02:26.1]} 16... Nf4 {[%clk
0:02:16.2]} 17. Re3 {[%clk 0:02:05.2]} 17... Bh6 {[%clk 0:01:37.4]} 18. Nf3
{[%clk 0:01:34]} 18... Nfd3 {[%clk 0:01:23.4]} 19. Nxe5 {[%clk 0:01:25.6]} 19...
Bxe3 {[%clk 0:01:21.4]} 20. Nxd3 {[%clk 0:01:24.9]} 20... cxd3 {[%clk
0:01:19.9]} 21. Qxd3 {[%clk 0:01:24]} 21... Bxc1 {[%clk 0:01:18.2]} 22. Rxc1
{[%clk 0:01:24.9]} 22... Qxa5 {[%clk 0:01:13]} 23. Qg3 {[%clk 0:01:22.1]} 23...
Bd7 {[%clk 0:01:09.9]} 24. Qxd6 {[%clk 0:01:21.5]} 24... Rad8 {[%clk 0:01:09.3]}
25. Qf4 {[%clk 0:01:12.9]} 25... Bb5 {[%clk 0:01:02.6]} 26. Bxb5 {[%clk
0:01:01.4]} 26... axb5 {[%clk 0:01:03.5]} 27. d6 {[%clk 0:01:01.5]} 27... Qb4
{[%clk 0:00:58.6]} 28. Nd5 {[%clk 0:00:55.5]} 28... Rxd6 {[%clk 0:00:31.3]} 29.
Nxb4 {[%clk 0:00:52.5]} 1-0

[Event "*** SCC Grand Prix: Titled Tuesday Blitz"]
[Site "Chess.com"]
[Date "2020.06.09"]
[Round "7"]
[White "reniite"]
[Black "Kapitan_Bayan"]
[Result "0-1"]
[WhiteElo "1836"]
[BlackElo "2341"]
[TimeControl "180+1"]
[EndTime "10:17:31 PDT"]
[Termination "Kapitan_Bayan won by resignation"]

1. e4 {[%clk 0:03:00.9]} 1... Nc6 {[%clk 0:02:59.3]} 2. d4 {[%clk 0:02:54.4]}
2... d5 {[%clk 0:02:59.4]} 3. e5 {[%clk 0:02:54.7]} 3... Bf5 {[%clk 0:02:59]} 4.
f4 {[%clk 0:02:36.7]} 4... h5 {[%clk 0:02:57.7]} 5. Bd3 {[%clk 0:02:30.6]} 5...
Nxd4 {[%clk 0:02:56.5]} 6. c3 {[%clk 0:02:29.5]} 6... Bxd3 {[%clk 0:02:52.9]} 7.
Qxd3 {[%clk 0:02:30.4]} 7... Nc6 {[%clk 0:02:51.9]} 8. Qb5 {[%clk 0:02:30.3]}
8... Qd7 {[%clk 0:02:33.5]} 9. Ne2 {[%clk 0:02:26.7]} 9... O-O-O {[%clk
0:02:28]} 10. Be3 {[%clk 0:02:24.7]} 10... Kb8 {[%clk 0:02:18.3]} 11. Qb3 {[%clk
0:02:22.2]} 11... f6 {[%clk 0:02:15.9]} 12. Bd4 {[%clk 0:02:19.5]} 12... fxe5
{[%clk 0:02:11.8]} 13. fxe5 {[%clk 0:02:15]} 13... Nh6 {[%clk 0:02:11.4]} 14.
Nd2 {[%clk 0:02:11.9]} 14... Nf5 {[%clk 0:02:07.1]} 15. O-O-O {[%clk 0:02:08.4]}
15... Ncxd4 {[%clk 0:02:02]} 16. Nxd4 {[%clk 0:02:09.3]} 16... Nxd4 {[%clk
0:01:58.8]} 17. cxd4 {[%clk 0:02:09.6]} 17... e6 {[%clk 0:01:59.6]} 18. Kb1
{[%clk 0:02:08.9]} 18... c5 {[%clk 0:01:58.7]} 19. dxc5 {[%clk 0:02:05.1]} 19...
Bxc5 {[%clk 0:01:59.6]} 20. Rc1 {[%clk 0:02:05.2]} 20... Bb6 {[%clk 0:01:52.8]}
21. Rhf1 {[%clk 0:01:57.7]} 21... Rhf8 {[%clk 0:01:50.5]} 22. Nf3 {[%clk
0:01:56.4]} 22... Rc8 {[%clk 0:01:44.4]} 23. Qd3 {[%clk 0:01:54.1]} 23... Qa4
{[%clk 0:01:35.6]} 24. Qg6 {[%clk 0:01:47.3]} 24... Rxc1+ {[%clk 0:00:38.5]} 25.
Rxc1 {[%clk 0:01:45.7]} 25... Qe4+ {[%clk 0:00:36.9]} 26. Qxe4 {[%clk
0:01:43.9]} 26... dxe4 {[%clk 0:00:37.8]} 27. Ng5 {[%clk 0:01:43.9]} 27... e3
{[%clk 0:00:21.5]} 28. Kc2 {[%clk 0:01:32.8]} 28... Rf2+ {[%clk 0:00:21.3]} 29.
Kd3 {[%clk 0:01:31.9]} 29... Rd2+ {[%clk 0:00:19.4]} 30. Ke4 {[%clk 0:01:31.1]}
30... e2 {[%clk 0:00:18.6]} 31. Re1 {[%clk 0:01:30.9]} 31... Bf2 {[%clk
0:00:17]} 32. Nf3 {[%clk 0:01:28.7]} 32... Bxe1 {[%clk 0:00:17.2]} 33. Nxe1
{[%clk 0:01:27.8]} 33... Rxb2 {[%clk 0:00:17.4]} 34. h3 {[%clk 0:01:22]} 34...
Rxa2 {[%clk 0:00:15]} 35. Ke3 {[%clk 0:01:22.5]} 35... a5 {[%clk 0:00:14.3]} 36.
g4 {[%clk 0:01:22.9]} 36... hxg4 {[%clk 0:00:13.9]} 37. hxg4 {[%clk 0:01:23]}
37... a4 {[%clk 0:00:14.8]} 0-1

[Event "*** SCC Grand Prix: Titled Tuesday Blitz"]
[Site "Chess.com"]
[Date "2020.06.09"]
[Round "7"]
[White "tamarozi99"]
[Black "gm_rashid"]
[Result "1-0"]
[WhiteElo "2068"]
[BlackElo "2338"]
[TimeControl "180+1"]
[EndTime "10:17:41 PDT"]
[Termination "tamarozi99 won on time"]

1. e4 {[%clk 0:03:00.9]} 1... e5 {[%clk 0:02:58.9]} 2. Nf3 {[%clk 0:03:00.6]}
2... Nc6 {[%clk 0:02:59.3]} 3. Bb5 {[%clk 0:02:59.5]} 3... a6 {[%clk 0:02:58.2]}
4. Ba4 {[%clk 0:02:59.4]} 4... d6 {[%clk 0:02:58.1]} 5. c3 {[%clk 0:02:57.1]}
5... f5 {[%clk 0:02:57]} 6. d3 {[%clk 0:02:45.5]} 6... Nf6 {[%clk 0:02:52.7]} 7.
Nbd2 {[%clk 0:02:39.1]} 7... fxe4 {[%clk 0:02:49.9]} 8. dxe4 {[%clk 0:02:35.2]}
8... Be6 {[%clk 0:02:38.5]} 9. Bb3 {[%clk 0:02:33]} 9... Qd7 {[%clk 0:02:34]}
10. Bxe6 {[%clk 0:02:31.9]} 10... Qxe6 {[%clk 0:02:32.8]} 11. Qb3 {[%clk
0:02:31.9]} 11... Qxb3 {[%clk 0:02:31.2]} 12. axb3 {[%clk 0:02:32.8]} 12... Be7
{[%clk 0:02:20.3]} 13. b4 {[%clk 0:02:12.4]} 13... O-O {[%clk 0:02:19]} 14. O-O
{[%clk 0:02:09.7]} 14... h6 {[%clk 0:02:18.2]} 15. Re1 {[%clk 0:02:07.7]} 15...
g5 {[%clk 0:02:17.5]} 16. h3 {[%clk 0:02:06.5]} 16... Nd8 {[%clk 0:02:08.7]} 17.
b5 {[%clk 0:02:02.4]} 17... Ne6 {[%clk 0:02:07]} 18. bxa6 {[%clk 0:01:58.7]}
18... Nc5 {[%clk 0:01:56.9]} 19. a7 {[%clk 0:01:40.9]} 19... c6 {[%clk 0:01:44]}
20. b4 {[%clk 0:01:33.1]} 20... Nd3 {[%clk 0:01:41.4]} 21. Rd1 {[%clk
0:01:26.5]} 21... d5 {[%clk 0:01:35]} 22. exd5 {[%clk 0:00:54.5]} 1-0